Workbook

Sheet Формы отчетности ПК
D2: 0-й год | E2: 1-й год | F2: 2-й год | G2: 3-й год | H2: 4-й год | I2: 5-й год | J2: 6-й год | K2: 7-й год | L2: 8-й год | M2: 9-й год | N2: 10-й год
A3: ОДДС
B4: Операционная деятельность
C5: Выручка от основной деятельности, оплаченная | D5: =расчеты!D11 -> 0 | E5: =расчеты!E11 -> 0 | F5: =расчеты!F11 -> 3204043.259 | G5: =расчеты!G11 -> 7616747.96 | H5: =расчеты!H11 -> 9531579.909 | I5: =расчеты!I11 -> 10021659.42 | J5: =расчеты!J11 -> 22613959.68 | K5: =расчеты!K11 -> 22046651.61 | L5: =расчеты!L11 -> 23853447.01 | M5: =расчеты!M11 -> 25905456.85 | N5: =расчеты!N11 -> 32025478.34
C6: Операционные расходы, оплаченные | E6: =расчеты!E15 -> -8131178.376 | F6: =расчеты!F15 -> -8622146.561 | G6: =расчеты!G15 -> -9065466.283 | H6: =расчеты!H15 -> -9531579.909 | I6: =расчеты!I15 -> -10021659.42 | J6: =расчеты!J15 -> -10536937.05 | K6: =расчеты!K15 -> -11078708.41 | L6: =расчеты!L15 -> -11648335.69 | M6: =расчеты!M15 -> -12247251.16 | N6: =расчеты!N15 -> -12876960.7
C7: Проценты по долговым обязательствам
C8: Налог на прибыль | D8: =- расчеты!D27 -> 0 | E8: =- расчеты!E27 -> 0 | F8: =- расчеты!F27 -> 0 | G8: =- расчеты!G27 -> 0 | H8: =- расчеты!H27 -> 0 | I8: =- расчеты!I27 -> 0 | J8: =- расчеты!J27 -> 0 | K8: =- расчеты!K27 -> -1609393.167 | L8: =- расчеты!L27 -> -2441022.263 | M8: =- расчеты!M27 -> -2731641.139 | N8: =- расчеты!N27 -> -3829703.526
C9: Прочее
C11: Итого операционный денежный поток | D11: =SUM(D5:D10) -> 0 | E11: =SUM(E5:E10) -> -8131178.376 | F11: -5418103.301 | G11: -1448718.323 | H11: 0 | I11: 3.725290298e-09 | J11: 12077022.63 | K11: 9358550.042 | L11: 9764089.052 | M11: 10926564.55 | N11: 15318814.11
B12: Инвестиционная деятельность
C13: Приобретение доли в ООО "Ромашка" | D13: =расчеты!D6 -> -2000 | E13: =расчеты!E6 -> 0 | F13: =расчеты!F6 -> 0 | G13: =расчеты!G6 -> 0 | H13: =расчеты!H6 -> 0 | I13: =расчеты!I6 -> 0 | J13: =расчеты!J6 -> 0 | K13: =расчеты!K6 -> 0 | L13: =расчеты!L6 -> 0 | M13: =расчеты!M6 -> 0 | N13: =расчеты!N6 -> 0
C14: Итого инвестиционный денежный поток | D14: =SUM(D13:D13) -> -2000 | E14: 0 | F14: 0 | G14: 0 | H14: 0 | I14: 0 | J14: 0 | K14: 0 | L14: 0 | M14: 0 | N14: 0
B15: Денежный поток до финансирования
C16: Итого денежный поток до финансирования | D16: =D11 + D14 -> -2000 | E16: -8131178.376 | F16: -5418103.301 | G16: -1448718.323 | H16: 0 | I16: 3.725290298e-09 | J16: 12077022.63 | K16: 9358550.042 | L16: 9764089.052 | M16: 10926564.55 | N16: 15318814.11
B17: Финансовая деятельность
C18: Взносы в УК | D18: =расчеты!D5 -> 5000000 | E18: =расчеты!E5 -> 10000000 | F18: =расчеты!F5 -> 0 | G18: =расчеты!G5 -> 0 | H18: =расчеты!H5 -> 0 | I18: =расчеты!I5 -> 0 | J18: =расчеты!J5 -> 0 | K18: =расчеты!K5 -> 0 | L18: =расчеты!L5 -> 0 | M18: =расчеты!M5 -> 0 | N18: =расчеты!N5 -> 0
C19: Привлечение долгосрочного заемного финансирования
C20: Возврат долгосрочного заемного финансирования
C22: Дивиденды | D22: =- MAX(MIN(SUM(D18:D20) + D16 + C27, D47 + D45), 0) -> 0 | E22: =- MAX(MIN(SUM(E18:E20) + E16 + D27, E47 + E45), 0) -> 0 | F22: 0 | G22: 0 | H22: 0 | I22: 0 | J22: 0 | K22: -6437572.667 | L22: -9764089.052 | M22: -10926564.55 | N22: -15318814.11
C24: Итого финансовый денежный поток | D24: =SUM(D18:D22) -> 5000000 | E24: =SUM(E18:E22) -> 10000000 | F24: 0 | G24: 0 | H24: 0 | I24: 0 | J24: 0 | K24: -6437572.667 | L24: -9764089.052 | M24: -10926564.55 | N24: -15318814.11
B25: Остаток ден. средств, н.п. | D25: =C27 -> 0 | E25: =D27 -> 4998000 | F25: 6866821.624 | G25: 1448718.323 | H25: 1.862645149e-09 | I25: 1.862645149e-09 | J25: 5.587935448e-09 | K25: 12077022.63 | L25: 14998000 | M25: 14998000 | N25: 14998000
B26: Ден. поток, итого | D26: =D16 + D24 -> 4998000 | E26: 1868821.624 | F26: -5418103.301 | G26: -1448718.323 | H26: 0 | I26: 3.725290298e-09 | J26: 12077022.63 | K26: 2920977.375 | L26: 0 | M26: 0 | N26: 0
B27: Остаток ден. средств, к.п. | D27: =D25 + D26 -> 4998000 | E27: =E25 + E26 -> 6866821.624 | F27: 1448718.323 | G27: 1.862645149e-09 | H27: 1.862645149e-09 | I27: 5.587935448e-09 | J27: 12077022.63 | K27: 14998000 | L27: 14998000 | M27: 14998000 | N27: 14998000
A29: ОПиУ
C30: Выручка от основной деятельности, начисленная | E30: =расчеты!E11 -> 0 | F30: =расчеты!F11 -> 3204043.259 | G30: =расчеты!G11 -> 7616747.96 | H30: =расчеты!H11 -> 9531579.909 | I30: =расчеты!I11 -> 10021659.42 | J30: =расчеты!J11 -> 22613959.68 | K30: =расчеты!K11 -> 22046651.61 | L30: =расчеты!L11 -> 23853447.01 | M30: =расчеты!M11 -> 25905456.85 | N30: =расчеты!N11 -> 32025478.34
C31: Операционные расходы, начисленные | E31: =расчеты!E15 -> -8131178.376 | F31: =расчеты!F15 -> -8622146.561 | G31: =расчеты!G15 -> -9065466.283 | H31: =расчеты!H15 -> -9531579.909 | I31: =расчеты!I15 -> -10021659.42 | J31: =расчеты!J15 -> -10536937.05 | K31: =расчеты!K15 -> -11078708.41 | L31: =расчеты!L15 -> -11648335.69 | M31: =расчеты!M15 -> -12247251.16 | N31: =расчеты!N15 -> -12876960.7
C33: Операционная прибыль до амортизации | D33: =SUM(D30:D32) -> 0 | E33: =SUM(E30:E32) -> -8131178.376 | F33: -5418103.301 | G33: -1448718.323 | H33: 0 | I33: 0 | J33: 12077022.63 | K33: 10967943.21 | L33: 12205111.32 | M33: 13658205.69 | N33: 19148517.63
C35: Амортизация активов | E35: 0 | F35: 0 | G35: 0 | H35: 0 | I35: 0 | J35: 0 | K35: 0 | L35: 0 | M35: 0 | N35: 0
C37: Операционная прибыль | D37: =D33 + D35 -> 0 | E37: =E33 + E35 -> -8131178.376 | F37: -5418103.301 | G37: -1448718.323 | H37: 0 | I37: 0 | J37: 12077022.63 | K37: 10967943.21 | L37: 12205111.32 | M37: 13658205.69 | N37: 19148517.63
C39: Проценты и комиссии уплаченные
C41: Прибыль до налогообложения | D41: =D37 + D39 -> 0 | E41: =E37 + E39 -> -8131178.376 | F41: -5418103.301 | G41: -1448718.323 | H41: 0 | I41: 0 | J41: 12077022.63 | K41: 10967943.21 | L41: 12205111.32 | M41: 13658205.69 | N41: 19148517.63
C43: Налог на прибыль | E43: =- расчеты!E27 -> 0 | F43: =- расчеты!F27 -> 0 | G43: =- расчеты!G27 -> 0 | H43: =- расчеты!H27 -> 0 | I43: =- расчеты!I27 -> 0 | J43: =- расчеты!J27 -> 0 | K43: =- расчеты!K27 -> -1609393.167 | L43: =- расчеты!L27 -> -2441022.263 | M43: =- расчеты!M27 -> -2731641.139 | N43: =- расчеты!N27 -> -3829703.526
C45: Чистая прибыль | D45: =D41 + D43 -> 0 | E45: =E41 + E43 -> -8131178.376 | F45: -5418103.301 | G45: -1448718.323 | H45: 0 | I45: 0 | J45: 12077022.63 | K45: 9358550.042 | L45: 9764089.052 | M45: 10926564.55 | N45: 15318814.11
C47: Нераспределённая прибыль на начало периода | E47: =D49 -> 0 | F47: =E49 -> -8131178.376 | G47: -13549281.68 | H47: -14998000 | I47: -14998000 | J47: -14998000 | K47: -2920977.375 | L47: 0 | M47: 0 | N47: 0
C48: Дивиденды уплаченные | D48: =D22 -> 0 | E48: =E22 -> 0 | F48: 0 | G48: 0 | H48: 0 | I48: 0 | J48: 0 | K48: -6437572.667 | L48: -9764089.052 | M48: -10926564.55 | N48: -15318814.11
C49: Нераспределённая прибыль на конец периода | D49: =SUM(D45:D48) -> 0 | E49: =SUM(E45:E48) -> -8131178.376 | F49: =SUM(F45:F48) -> -13549281.68 | G49: -14998000 | H49: -14998000 | I49: -14998000 | J49: -2920977.375 | K49: 0 | L49: 0 | M49: 0 | N49: 0
A52: Баланс
B53: Внеоборотные активы
C54: Первоначальная стоимость ОС | D54: 0 | E54: 0 | F54: 0 | G54: 0 | H54: 0 | I54: 0 | J54: 0 | K54: 0 | L54: 0 | M54: 0 | N54: 0
C55: Накопленная амортизация | D55: =SUM($D35:D35) -> 0 | E55: =SUM($D35:E35) -> 0 | F55: =SUM($D35:F35) -> 0 | G55: =SUM($D35:G35) -> 0 | H55: =SUM($D35:H35) -> 0 | I55: =SUM($D35:I35) -> 0 | J55: =SUM($D35:J35) -> 0 | K55: =SUM($D35:K35) -> 0 | L55: =SUM($D35:L35) -> 0 | M55: =SUM($D35:M35) -> 0 | N55: =SUM($D35:N35) -> 0
C56: Чистые внеоборотные активы | D56: =SUM(D54:D55) -> 0 | E56: 0 | F56: 0 | G56: 0 | H56: 0 | I56: 0 | J56: 0 | K56: 0 | L56: 0 | M56: 0 | N56: 0
C57: Доля в ООО "Ромашка" | D57: =- SUM(расчеты!$D6:D6) -> 2000 | E57: =- SUM(расчеты!$D6:E6) -> 2000 | F57: =- SUM(расчеты!$D6:F6) -> 2000 | G57: =- SUM(расчеты!$D6:G6) -> 2000 | H57: =- SUM(расчеты!$D6:H6) -> 2000 | I57: =- SUM(расчеты!$D6:I6) -> 2000 | J57: =- SUM(расчеты!$D6:J6) -> 2000 | K57: =- SUM(расчеты!$D6:K6) -> 2000 | L57: =- SUM(расчеты!$D6:L6) -> 2000 | M57: =- SUM(расчеты!$D6:M6) -> 2000 | N57: =- SUM(расчеты!$D6:N6) -> 2000
C58: Итого ВОА | D58: =D56 + D57 -> 2000 | E58: =E56 + E57 -> 2000 | F58: 2000 | G58: 2000 | H58: 2000 | I58: 2000 | J58: 2000 | K58: 2000 | L58: 2000 | M58: 2000 | N58: 2000
B59: Оборотные активы
C60: Налоговый актив | D60: =- MIN(SUM($D9:D9), 0) -> 0 | E60: =- MIN(SUM($D9:E9), 0) -> 0 | F60: =- MIN(SUM($D9:F9), 0) -> 0 | G60: =- MIN(SUM($D9:G9), 0) -> 0 | H60: =- MIN(SUM($D9:H9), 0) -> 0 | I60: =- MIN(SUM($D9:I9), 0) -> 0 | J60: =- MIN(SUM($D9:J9), 0) -> 0 | K60: =- MIN(SUM($D9:K9), 0) -> 0 | L60: =- MIN(SUM($D9:L9), 0) -> 0 | M60: =- MIN(SUM($D9:M9), 0) -> 0 | N60: =- MIN(SUM($D9:N9), 0) -> 0
C61: Денежные средства, к.п. | D61: =D27 -> 4998000 | E61: =E27 -> 6866821.624 | F61: 1448718.323 | G61: 1.862645149e-09 | H61: 1.862645149e-09 | I61: 5.587935448e-09 | J61: 12077022.63 | K61: 14998000 | L61: 14998000 | M61: 14998000 | N61: 14998000
C62: Итого ОА | D62: =SUM(D60:D61) -> 4998000 | E62: =SUM(E60:E61) -> 6866821.624 | F62: 1448718.323 | G62: 1.862645149e-09 | H62: 1.862645149e-09 | I62: 5.587935448e-09 | J62: 12077022.63 | K62: 14998000 | L62: 14998000 | M62: 14998000 | N62: 14998000
B63: Итого активы | D63: =D58 + D62 -> 5000000 | E63: =E58 + E62 -> 6868821.624 | F63: 1450718.323 | G63: 2000 | H63: 2000 | I63: 2000 | J63: 12079022.63 | K63: 15000000 | L63: 15000000 | M63: 15000000 | N63: 15000000
B66: Краткосрочные обязательства
C67: Налоговые обязательства | D67: =MAX(SUM($D9:D9), 0) -> 0 | E67: =MAX(SUM($D9:E9), 0) -> 0 | F67: =MAX(SUM($D9:F9), 0) -> 0 | G67: =MAX(SUM($D9:G9), 0) -> 0 | H67: =MAX(SUM($D9:H9), 0) -> 0 | I67: =MAX(SUM($D9:I9), 0) -> 0 | J67: =MAX(SUM($D9:J9), 0) -> 0 | K67: =MAX(SUM($D9:K9), 0) -> 0 | L67: =MAX(SUM($D9:L9), 0) -> 0 | M67: =MAX(SUM($D9:M9), 0) -> 0 | N67: =MAX(SUM($D9:N9), 0) -> 0
C69: Итого КО | D69: =SUM(D67:D68) -> 0 | E69: =SUM(E67:E68) -> 0 | F69: 0 | G69: 0 | H69: 0 | I69: 0 | J69: 0 | K69: 0 | L69: 0 | M69: 0 | N69: 0
B70: Долгосрочные обязательства
C72: Долгосрочные займы | D72: =IF(ISNUMBER(C72), C72 + D19 - D20, D19 - D20) -> 0 | E72: =IF(ISNUMBER(D72), D72 + E19 - E20, E19 - E20) -> 0 | F72: 0 | G72: 0 | H72: 0 | I72: 0 | J72: 0 | K72: 0 | L72: 0 | M72: 0 | N72: 0
B74: Активы за вычетом обязательств | D74: =D63 - D72 -> 5000000 | E74: =E63 - E72 -> 6868821.624 | F74: 1450718.323 | G74: 2000 | H74: 2000 | I74: 2000 | J74: 12079022.63 | K74: 15000000 | L74: 15000000 | M74: 15000000 | N74: 15000000
B76: Капиталы и резервы
C78: УК | D78: =SUM($D18:D18) -> 5000000 | E78: =SUM($D18:E18) -> 15000000 | F78: =SUM($D18:F18) -> 15000000 | G78: =SUM($D18:G18) -> 15000000 | H78: =SUM($D18:H18) -> 15000000 | I78: =SUM($D18:I18) -> 15000000 | J78: =SUM($D18:J18) -> 15000000 | K78: =SUM($D18:K18) -> 15000000 | L78: =SUM($D18:L18) -> 15000000 | M78: =SUM($D18:M18) -> 15000000 | N78: =SUM($D18:N18) -> 15000000
C79: Нераспределенная прибыль | D79: =D49 -> 0 | E79: =E49 -> -8131178.376 | F79: -13549281.68 | G79: -14998000 | H79: -14998000 | I79: -14998000 | J79: -2920977.375 | K79: 0 | L79: 0 | M79: 0 | N79: 0
C80: Итого капиталы и резервы | D80: =SUM(D78:D79) -> 5000000 | E80: =SUM(E78:E79) -> 6868821.624 | F80: 1450718.323 | G80: 2000 | H80: 2000 | I80: 2000 | J80: 12079022.63 | K80: 15000000 | L80: 15000000 | M80: 15000000 | N80: 15000000
B82: Баланс | D82: =D74 - D80 -> 0 | E82: =E74 - E80 -> 0 | F82: 0 | G82: -1.862645149e-09 | H82: -1.862645149e-09 | I82: 1.862645149e-09 | J82: 0 | K82: 0 | L82: 0 | M82: 0 | N82: 0
B83: Изменение | D83: =D82 - C82 -> 0 | E83: 0 | F83: 0 | G83: -1.862645149e-09 | H83: 0 | I83: 3.725290298e-09 | J83: -1.862645149e-09 | K83: 0 | L83: 0 | M83: 0 | N83: 0
B84: Половина изменения | D84: =D83 / 2 -> 0 | E84: 0 | F84: 0 | G84: -9.313225746e-10 | H84: 0 | I84: 1.862645149e-09 | J84: -9.313225746e-10 | K84: 0 | L84: 0 | M84: 0 | N84: 0

Sheet расчеты
D2: 0-й год | E2: 1-й год | F2: 2-й год | G2: 3-й год | H2: 4-й год | I2: 5-й год | J2: 6-й год | K2: 7-й год | L2: 8-й год | M2: 9-й год | N2: 10-й год
A3: Расчеты
A4: Инвестиционная деятельность
B5: Взнос в УК | D5: =вводные!C24 -> 5000000 | E5: =вводные!D24 -> 10000000
B6: Приобретение доли в ООО "Ромашка" | D6: =- вводные!C25 -> -2000
A8: Операционная деятельность
B9: Доходы от участия в ООО "Ромашка" | D9: 0 | E9: 0 | F9: 3204043.259 | G9: 3466069.067 | H9: 0 | I9: 645447.5225 | J9: 22613959.68 | K9: 22046651.61 | L9: 23853447.01 | M9: 25905456.85 | N9: 32025478.34
B10: Доп. финансирование по договору | E10: =E29 -> 0 | F10: =F29 -> 0 | G10: 4150678.893 | H10: 9531579.909 | I10: 9376211.897 | J10: 0 | K10: 0 | L10: 0 | M10: 0 | N10: 0
B11: Итого доходы | E11: =SUM(E9:E10) -> 0 | F11: =SUM(F9:F10) -> 3204043.259 | G11: 7616747.96 | H11: 9531579.909 | I11: 10021659.42 | J11: 22613959.68 | K11: 22046651.61 | L11: 23853447.01 | M11: 25905456.85 | N11: 32025478.34
B13: Расходы на заработную плату | E13: =- Индексы!C$7 * вводные!$D$14 -> -7812076.129 | F13: =- Индексы!D$7 * вводные!$D$14 -> -8283776.62 | G13: =- Индексы!E$7 * вводные!$D$14 -> -8709698.579 | H13: =- Индексы!F$7 * вводные!$D$14 -> -9157519.911 | I13: =- Индексы!G$7 * вводные!$D$14 -> -9628366.604 | J13: =- Индексы!H$7 * вводные!$D$14 -> -10123422.54 | K13: =- Индексы!I$7 * вводные!$D$14 -> -10643932.46 | L13: =- Индексы!J$7 * вводные!$D$14 -> -11191205.14 | M13: =- Индексы!K$7 * вводные!$D$14 -> -11766616.6 | N13: =- Индексы!L$7 * вводные!$D$14 -> -12371613.64
B14: Прочие расходы | E14: =- Индексы!C$7 * вводные!$D$22 -> -319102.2469 | F14: =- Индексы!D$7 * вводные!$D$22 -> -338369.9402 | G14: =- Индексы!E$7 * вводные!$D$22 -> -355767.7038 | H14: =- Индексы!F$7 * вводные!$D$22 -> -374059.9978 | I14: =- Индексы!G$7 * вводные!$D$22 -> -393292.8157 | J14: =- Индексы!H$7 * вводные!$D$22 -> -413514.5158 | K14: =- Индексы!I$7 * вводные!$D$22 -> -434775.9429 | L14: =- Индексы!J$7 * вводные!$D$22 -> -457130.556 | M14: =- Индексы!K$7 * вводные!$D$22 -> -480634.5627 | N14: =- Индексы!L$7 * вводные!$D$22 -> -505347.0609
B15: Итого расходы | E15: =SUM(E13:E14) -> -8131178.376 | F15: =SUM(F13:F14) -> -8622146.561 | G15: -9065466.283 | H15: -9531579.909 | I15: -10021659.42 | J15: -10536937.05 | K15: -11078708.41 | L15: -11648335.69 | M15: -12247251.16 | N15: -12876960.7
B17: Налогооблагаемая прибыль/убыток | E17: ='Формы отчетности ПК'!E41 -> -8131178.376 | F17: ='Формы отчетности ПК'!F41 -> -5418103.301 | G17: ='Формы отчетности ПК'!G41 -> -1448718.323 | H17: ='Формы отчетности ПК'!H41 -> 0 | I17: ='Формы отчетности ПК'!I41 -> 0 | J17: ='Формы отчетности ПК'!J41 -> 12077022.63 | K17: ='Формы отчетности ПК'!K41 -> 10967943.21 | L17: ='Формы отчетности ПК'!L41 -> 12205111.32 | M17: ='Формы отчетности ПК'!M41 -> 13658205.69 | N17: ='Формы отчетности ПК'!N41 -> 19148517.63
B18: Зачет убытка прошлых лет | E18: =E24 -> 0 | F18: =F24 -> 0 | G18: 0 | H18: 0 | I18: 0 | J18: -12077022.63 | K18: -2920977.375 | L18: 0 | M18: 0 | N18: 0
B19: Прибыль до налогообложения за вычетом накопленных убытков | E19: =SUM(E17:E18) -> -8131178.376 | F19: -5418103.301 | G19: -1448718.323 | H19: 0 | I19: 0 | J19: 0 | K19: 8046965.834 | L19: 12205111.32 | M19: 13658205.69 | N19: 19148517.63
B21: Налоговые убытки
B22: Накопленный убыток на начало периода | F22: =E25 -> 8131178.376 | G22: =F25 -> 13549281.68 | H22: 14998000 | I22: 14998000 | J22: 14998000 | K22: 2920977.375 | L22: 0 | M22: 0 | N22: 0
B23: + Убыток за период | E23: =- MIN(E17, 0) -> 8131178.376 | F23: =- MIN(F17, 0) -> 5418103.301 | G23: 1448718.323 | H23: 0 | I23: 0 | J23: 0 | K23: 0 | L23: 0 | M23: 0 | N23: 0
B24: - Использование убытка | E24: =- MIN(E17, E22) * (E17 > 0.01) -> 0 | F24: =- MIN(F17, F22) * (F17 > 0.01) -> 0 | G24: 0 | H24: 0 | I24: 0 | J24: -12077022.63 | K24: -2920977.375 | L24: 0 | M24: 0 | N24: 0
B25: Накопленный убыток на конец периода | E25: =SUM(E22:E24) -> 8131178.376 | F25: =SUM(F22:F24) -> 13549281.68 | G25: 14998000 | H25: 14998000 | I25: 14998000 | J25: 2920977.375 | K25: 0 | L25: 0 | M25: 0 | N25: 0
B27: Итого налог на прибыль | E27: =MAX(E19, 0) * 20% -> 0 | F27: =MAX(F19, 0) * 20% -> 0 | G27: 0 | H27: 0 | I27: 0 | J27: 0 | K27: 1609393.167 | L27: 2441022.263 | M27: 2731641.139 | N27: 3829703.526
B29: Потребность в доп. финансировании | E29: =- MIN(SUM($D5:E6, $E9:E9, $E15:E15) + SUM($D10:D10), 0) -> 0 | F29: =- MIN(SUM($D5:F6, $E9:F9, $E15:F15) + SUM($D10:E10), 0) -> 0 | G29: =- MIN(SUM($D5:G6, $E9:G9, $E15:G15) + SUM($D10:F10), 0) -> 4150678.893 | H29: =- MIN(SUM($D5:H6, $E9:H9, $E15:H15) + SUM($D10:G10), 0) -> 9531579.909 | I29: =- MIN(SUM($D5:I6, $E9:I9, $E15:I15) + SUM($D10:H10), 0) -> 9376211.897 | J29: =- MIN(SUM($D5:J6, $E9:J9, $E15:J15) + SUM($D10:I10), 0) -> 0 | K29: =- MIN(SUM($D5:K6, $E9:K9, $E15:K15) + SUM($D10:J10), 0) -> 0 | L29: =- MIN(SUM($D5:L6, $E9:L9, $E15:L15) + SUM($D10:K10), 0) -> 0 | M29: =- MIN(SUM($D5:M6, $E9:M9, $E15:M15) + SUM($D10:L10), 0) -> 0 | N29: =- MIN(SUM($D5:N6, $E9:N9, $E15:N15) + SUM($D10:M10), 0) -> 0
A31: Расчет показателей эффективности
B32: Денежный поток проекта | D32: =D6 + D9 + D10 + D15 - D47 -> -2000 | E32: =E6 + E9 + E10 + E15 - E47 -> -8131178.376 | F32: -5418103.301 | G32: -1448718.323 | H32: 0 | I32: 3.725290298e-09 | J32: 12077022.63 | K32: 10967943.21 | L32: 12205111.32 | M32: 11487843.26 | N32: 15318814.11
B33: ВНД проекта | C33: =IRR(D32:N32) -> 0.2497014885
B34: ЧПС проекта | C34: =NPV(вводные!$C$27, D32:N32) -> 7186510.603
A36: Расчет налога на прибыль для включения в расчет ВНД проекта
B37: Налогооблагаемая прибыль/убыток | E37: =E9 + E15 -> -8131178.376 | F37: =F9 + F15 -> -5418103.301 | G37: -5599397.216 | H37: -9531579.909 | I37: -9376211.897 | J37: 12077022.63 | K37: 10967943.21 | L37: 12205111.32 | M37: 13658205.69 | N37: 19148517.63
B38: Зачет убытка прошлых лет | E38: =E44 -> 0 | F38: =F44 -> 0 | G38: 0 | H38: 0 | I38: 0 | J38: -12077022.63 | K38: -10967943.21 | L38: -12205111.32 | M38: -2806393.55 | N38: 0
B39: Прибыль до налогообложения за вычетом накопленных убытков | E39: =SUM(E37:E38) -> -8131178.376 | F39: -5418103.301 | G39: -5599397.216 | H39: -9531579.909 | I39: -9376211.897 | J39: 0 | K39: 0 | L39: 0 | M39: 10851812.14 | N39: 19148517.63
B41: Налоговые убытки
B42: Накопленный убыток на начало периода | F42: =E45 -> 8131178.376 | G42: =F45 -> 13549281.68 | H42: 19148678.89 | I42: 28680258.8 | J42: 38056470.7 | K42: 25979448.07 | L42: 15011504.87 | M42: 2806393.55 | N42: 0
B43: + Убыток за период | E43: =- MIN(E37, 0) -> 8131178.376 | F43: =- MIN(F37, 0) -> 5418103.301 | G43: 5599397.216 | H43: 9531579.909 | I43: 9376211.897 | J43: 0 | K43: 0 | L43: 0 | M43: 0 | N43: 0
B44: - Использование убытка | E44: =- MIN(E37, E42) * (E37 > 0.01) -> 0 | F44: =- MIN(F37, F42) * (F37 > 0.01) -> 0 | G44: 0 | H44: 0 | I44: 0 | J44: -12077022.63 | K44: -10967943.21 | L44: -12205111.32 | M44: -2806393.55 | N44: 0
B45: Накопленный убыток на конец периода | E45: =SUM(E42:E44) -> 8131178.376 | F45: =SUM(F42:F44) -> 13549281.68 | G45: 19148678.89 | H45: 28680258.8 | I45: 38056470.7 | J45: 25979448.07 | K45: 15011504.87 | L45: 2806393.55 | M45: 0 | N45: 0
B47: Итого налог на прибыль | E47: =MAX(E39, 0) * 20% -> 0 | F47: =MAX(F39, 0) * 20% -> 0 | G47: 0 | H47: 0 | I47: 0 | J47: 0 | K47: 0 | L47: 0 | M47: 2170362.429 | N47: 3829703.526
B48: Денежный поток акционеров | D48: =- D5 - 'Формы отчетности ПК'!D48 -> -5000000 | E48: =- E5 - 'Формы отчетности ПК'!E48 -> -10000000 | F48: =- F5 - 'Формы отчетности ПК'!F48 -> 0 | G48: =- G5 - 'Формы отчетности ПК'!G48 -> 0 | H48: =- H5 - 'Формы отчетности ПК'!H48 -> 0 | I48: =- I5 - 'Формы отчетности ПК'!I48 -> 0 | J48: =- J5 - 'Формы отчетности ПК'!J48 -> 0 | K48: =- K5 - 'Формы отчетности ПК'!K48 -> 6437572.667 | L48: =- L5 - 'Формы отчетности ПК'!L48 -> 9764089.052 | M48: =- M5 - 'Формы отчетности ПК'!M48 -> 10926564.55 | N48: =- N5 - 'Формы отчетности ПК'!N48 -> 15318814.11
B49: ВНД акционеров без учета терминальной стоимости | C49: =IRR(D48:N48) -> 0.1370456737
B50: ЧПС проекта без учета терминальной стоимости | C50: =NPV(вводные!$C$28, D48:N48) -> -1035690.41
B53: ВНД Проекта
B54: Денежный поток до финансирования и после налогообложения | D54: ='Формы отчетности ПК'!D16 - 'Формы отчетности ПК'!D7 - 'Формы отчетности ПК'!D8 - D47 -> -2000 | E54: ='Формы отчетности ПК'!E16 - 'Формы отчетности ПК'!E7 - 'Формы отчетности ПК'!E8 - E47 -> -8131178.376 | F54: ='Формы отчетности ПК'!F16 - 'Формы отчетности ПК'!F7 - 'Формы отчетности ПК'!F8 - F47 -> -5418103.301 | G54: ='Формы отчетности ПК'!G16 - 'Формы отчетности ПК'!G7 - 'Формы отчетности ПК'!G8 - G47 -> -1448718.323 | H54: ='Формы отчетности ПК'!H16 - 'Формы отчетности ПК'!H7 - 'Формы отчетности ПК'!H8 - H47 -> 0 | I54: ='Формы отчетности ПК'!I16 - 'Формы отчетности ПК'!I7 - 'Формы отчетности ПК'!I8 - I47 -> 3.725290298e-09 | J54: ='Формы отчетности ПК'!J16 - 'Формы отчетности ПК'!J7 - 'Формы отчетности ПК'!J8 - J47 -> 12077022.63 | K54: ='Формы отчетности ПК'!K16 - 'Формы отчетности ПК'!K7 - 'Формы отчетности ПК'!K8 - K47 -> 10967943.21 | L54: ='Формы отчетности ПК'!L16 - 'Формы отчетности ПК'!L7 - 'Формы отчетности ПК'!L8 - L47 -> 12205111.32 | M54: ='Формы отчетности ПК'!M16 - 'Формы отчетности ПК'!M7 - 'Формы отчетности ПК'!M8 - M47 -> 11487843.26 | N54: ='Формы отчетности ПК'!N16 - 'Формы отчетности ПК'!N7 - 'Формы отчетности ПК'!N8 - N47 -> 15318814.11
B55: Номинальный | E55: =E54 + E62 -> -8131178.376 | F55: =F54 + F62 -> -5418103.301 | G55: -1448718.323 | H55: 0 | I55: 3.725290298e-09 | J55: 12077022.63 | K55: 10967943.21 | L55: 12205111.32 | M55: 11487843.26 | N55: 72383171.77
B56: Реальный | E56: =E55 / Индексы!C7 -> -7644426 | F56: =F55 / Индексы!D7 -> -4803709.779 | G56: =G55 / Индексы!E7 -> -1221627.18 | H56: =H55 / Индексы!F7 -> 0 | I56: =I55 / Индексы!G7 -> 2.841615827e-09 | J56: =J55 / Индексы!H7 -> 8761740.276 | K56: =K55 / Индексы!I7 -> 7567996.842 | L56: =L55 / Индексы!J7 -> 8009819.836 | M56: =M55 / Индексы!K7 -> 7170422.701 | N56: =N55 / Индексы!L7 -> 42970372.66
B57: NPV проекта (на основе фиксированной WACC) | C57: =NPV(WACC, E55:N55) -> 22371923.67
B59: Номинальный (для расчёта IRR) | C59: =IFERROR(IRR($E59:$CL59), "n/a") -> 0.3336670538 | E59: =E54 + E62 -> -8131178.376 | F59: =F54 + F62 -> -5418103.301 | G59: -1448718.323 | H59: 0 | I59: 3.725290298e-09 | J59: 12077022.63 | K59: 10967943.21 | L59: 12205111.32 | M59: 11487843.26 | N59: 72383171.77
B60: NPV проекта (для расчёта IRR) | C60: =NPV(PIRR1, E59:N59) -> 9.478258662e-06
B62: FFCF (постпрогнозное значение, для расчёта ВНД) | C62: 0.3336670538 | E62: =IFERROR(_xlfn.NUMBERVALUE(LEFT(E2, 2)) = 10, 0) * E54 * (1 + Term_g) / (PIRR1 - Term_g) -> 0 | F62: 0 | G62: 0 | H62: 0 | I62: 0 | J62: 0 | K62: 0 | L62: 0 | M62: 0 | N62: 57064357.67
B63: FFCF (на основе фиксированного WACC) | E63: =IFERROR(_xlfn.NUMBERVALUE(LEFT(E2, 2)) = 10, 0) * E54 * (1 + Term_g) / (WACC - Term_g) -> 0 | F63: 0 | G63: 0 | H63: 0 | I63: 0 | J63: 0 | K63: 0 | L63: 0 | M63: 0 | N63: 163378615.6

Sheet вводные
B2: Должность | C2: В мес. | D2: В год.
B3: Генеральный директор | C3: 200000 | D3: =C3 * 12 -> 2400000
B4: Главный бухгалтер | C4: 50000 | D4: =C4 * 12 -> 600000 | E4: =D4 * E18 -> 132000
B5: Руководитель проекта | C5: 150000 | D5: 1800000
B6: Менеджер проекта | C6: 100000 | D6: 1200000
B7: Итого ФОТ | C7: =SUM(C3:C6) -> 500000 | D7: =SUM(D3:D6) -> 6000000
B8: Взносы в государственные внебюджетные фонды
B9: Генеральный директор | D9: =SUM(E9:G9) -> 478742 | E9: =MIN($D3, E$19) * E$18 + MAX($D3 - E$19, 0) * E$20 -> 335520 | F9: =MIN($D3, F$19) * F$18 + MAX($D3 - F$19, 0) * F$20 -> 20822 | G9: =MIN($D3, G$19) * G$18 + MAX($D3 - G$19, 0) * G$20 -> 122400
B10: Главный бухгалтер | D10: =SUM(E10:G10) -> 180000 | E10: =MIN($D4, E$19) * E$18 + MAX($D4 - E$19, 0) * E$20 -> 132000 | F10: 17400 | G10: 30600
B11: Руководитель проекта | D11: 388142 | E11: 275520 | F11: 20822 | G11: 91800
B12: Менеджер проекта | D12: 297542 | E12: 215520 | F12: 20822 | G12: 61200
B13: Итого | D13: =SUM(D9:D12) -> 1344426
B14: ИТОГО затраты на персонал | D14: =SUM(D7, D13) -> 7344426
B16: Плательщики страховых взносов | E16: Тарифы страховых взносов
B17: в ПФР, ФСС и ФОМС | E17: ПФР | F17: ФСС | G17: ФОМС
B18: Тарифы страховых взносов для всех страхователей (ч.1 ст.58.2) в пределах установленной Правительством величины базы для начисления страховых взносов: | E18: 0.22 | F18: 0.029 | G18: 0.051
B19: установленная Правительством величины базы для начисления страховых взносов: | E19: 796000 | F19: 718000 | G19: 0
B20: Свыше базы | E20: 0.1 | F20: 0 | G20: 0.051
C21: В мес. | D21: В год.
B22: Прочие расходы | C22: 25000 | D22: =C22 * 12 -> 300000
B24: Взнос в УК | C24: 5000000 | D24: 10000000
B25: Инвестиции | C25: 2000
B26: Доля в ООО "Ромашка" | C26: 0.2
B27: Требуемая доходность на инвестиции, % | C27: 0.15
B28: Требуемая доходность на акционерный капитал, % | C28: 0.15

Sheet Индексы
A1: Индексация цен (выручка, расходы)
C2: 1-й год | D2: 2-й год | E2: 3-й год | F2: 4-й год | G2: 5-й год | H2: 6-й год | I2: 7-й год | J2: 8-й год | K2: 9-й год | L2: 10-й год | N2: Информационный источник
B3: Индекс потребительских цен (Базовый сценарий Минэкономразвития РФ) | C3: 0.06367415625 | D3: 0.06038093894 | E3: 0.0514163984 | F3: =E3 -> 0.0514163984 | G3: =F3 -> 0.0514163984 | H3: 0.0514163984 | I3: 0.0514163984 | J3: 0.0514163984 | K3: 0.0514163984 | L3: 0.0514163984 | N3: http://economy.gov.ru/minec/about/structure/depmacro/20151026
B4: Загрузка номерного комплекса (%) | C4: 0.53 | D4: =C4+1.33% -> 0.5433 | E4: =D4+1.33% -> 0.5566 | F4: 0.5699 | G4: 0.5832 | H4: 0.5965 | I4: 0.6098 | J4: 0.6231 | K4: 0.6364 | L4: 0.6497 | N4: Бизнес план компании
B5: Индексация цен реализации | C5: =C3 -> 0.06367415625 | D5: =D3 -> 0.06038093894 | E5: 0.0514163984 | F5: 0.0514163984 | G5: 0.0514163984 | H5: 0.0514163984 | I5: 0.0514163984 | J5: 0.0514163984 | K5: 0.0514163984 | L5: 0.0514163984 | N5: В соответствии с прогнозом Минэконом развития - "базовый сценарий" (см выше)
B6: Индексация расходов | C6: =C3 -> 0.06367415625 | D6: =D3 -> 0.06038093894 | E6: 0.0514163984 | F6: 0.0514163984 | G6: 0.0514163984 | H6: 0.0514163984 | I6: 0.0514163984 | J6: 0.0514163984 | K6: 0.0514163984 | L6: 0.0514163984 | N6: В соответствии с прогнозом Минэконом развития - "базовый сценарий" (см выше)
B7: Накопительный индекс расходов | C7: =C6+100% -> 1.063674156 | D7: =C7*(100%+D6) -> 1.127899801 | E7: =D7*(100%+E6) -> 1.185892346 | F7: =E7*(100%+F6) -> 1.246866659 | G7: 1.310976052 | H7: 1.378381719 | I7: 1.449253143 | J7: 1.52376852 | K7: 1.602115209 | L7: 1.684490203
